{"text_format":"3","workbook":"xlsx","n_sheets":2,"sheets":["プロジェクトのスケジュール","詳細情報"],"not_rendered":{"images":1,"defined_names":7},"read":"whole","date_system":"1900"}

{"sheet":"プロジェクトのスケジュール","index":0,"n_rows":33,"n_cols":64,"rows_kept":33,"merged":[[2,2,2,3],[2,4,2,5],[3,2,3,3],[3,8,3,14],[3,15,3,21],[3,22,3,28],[3,29,3,35],[3,36,3,42],[3,43,3,49],[3,50,3,56],[3,57,3,63],[4,1,4,6]]}
["このワークシートでプロジェクトのスケジュール​​を作成します。\nセル B1 には、このプロジェクトのタイトルを入力します。\nこのワークシートの使用方法に関する情報 (スクリーン リーダーの説明やブックの作成者など) は、\"詳細情報\" ワークシートに入ります。\n列 A を下方に移動し続けると、さらに多くの情報を確認できます。","プロジェクト タイトル",{"$nulls":6},"シンプル ガント チャート (Vertex42.com)"]
["セル B2 には会社名前を入力します。","会社名",{"$nulls":6},"https://www.vertex42.com/ExcelTemplates/simple-gantt-chart.html"]
["セル B3 に、プロジェクト主任の名前を入力します。セル E3 には、プロジェクトの開始日を入力します。プロジェクトの開始: ラベルはセル C3 にあります。","プロジェクト主任","プロジェクトの開始:",null,{"$f":"TODAY()","v":"2019-05-30"}]
["セル E4 の週表示は、セル I4 のプロジェクトのスケジュールに表示する開始週を表します。プロジェクトの開始日は、第 1 週と見なされます。週表示を変更するには、セル E4 に新しい週番号を入力します。\nセル E4 の週表示から始まる各週の開始日は、セル I4 から始まり、自動計算されます。このビューには、セル I4 からセル BF4 までの 8 週間が表示されます。\nこれらのセルは変更しないでください。\n週表示: ラベルはセル C4 にあります。",null,"週表示:",null,1,{"$nulls":3},{"$f":"I5","v":"2019-05-26"},{"$nulls":6},{"$f":"P5","v":"2019-06-02"},{"$nulls":6},{"$f":"W5","v":"2019-06-09"},{"$nulls":6},{"$f":"AD5","v":"2019-06-16"},{"$nulls":6},{"$f":"AK5","v":"2019-06-23"},{"$nulls":6},{"$f":"AR5","v":"2019-06-30"},{"$nulls":6},{"$f":"AY5","v":"2019-07-07"},{"$nulls":6},{"$f":"BF5","v":"2019-07-14"}]
["セル I5 から BL5 には、各日付のセルの上にあるセル ブロック内に表示される週の日付の数字が含まれており、自動的に計算が行われます。\nこれらのセルは変更しないでください。\n今日の日付は、行 5 の今日の日付からプロジェクト スケジュールの最後まで日付列全体が赤 (16 進値 #AD3815) で囲まれます。",{"$nulls":7},{"$f":"プロジェクト_開始-WEEKDAY(プロジェクト_開始,1)+1+7*(週_表示-1)","v":"2019-05-26"},{"$f":"I5+1","v":"2019-05-27"},{"$f":"J5+1","v":"2019-05-28"},"2019-05-29","2019-05-30","2019-05-31","2019-06-01",{"$f":"O5+1","v":"2019-06-02"},{"$f":"P5+1","v":"2019-06-03"},"2019-06-04","2019-06-05","2019-06-06","2019-06-07","2019-06-08",{"$f":"V5+1","v":"2019-06-09"},{"$f":"W5+1","v":"2019-06-10"},"2019-06-11","2019-06-12","2019-06-13","2019-06-14","2019-06-15",{"$f":"AC5+1","v":"2019-06-16"},{"$f":"AD5+1","v":"2019-06-17"},"2019-06-18","2019-06-19","2019-06-20","2019-06-21","2019-06-22",{"$f":"AJ5+1","v":"2019-06-23"},{"$f":"AK5+1","v":"2019-06-24"},"2019-06-25","2019-06-26","2019-06-27","2019-06-28","2019-06-29",{"$f":"AQ5+1","v":"2019-06-30"},{"$f":"AR5+1","v":"2019-07-01"},"2019-07-02","2019-07-03","2019-07-04","2019-07-05","2019-07-06",{"$f":"AX5+1","v":"2019-07-07"},{"$f":"AY5+1","v":"2019-07-08"},{"$f":"AZ5+1","v":"2019-07-09"},"2019-07-10","2019-07-11","2019-07-12","2019-07-13",{"$f":"BE5+1","v":"2019-07-14"},{"$f":"BF5+1","v":"2019-07-15"},{"$f":"BG5+1","v":"2019-07-16"},"2019-07-17","2019-07-18","2019-07-19","2019-07-20"]
["この行には、その下に続くプロジェクトのスケジュールの見出しが含まれます。\nコンテンツを読み上げるには、B6 から BL 6 に移動します。その見出しの上にある日付の各曜日の最初の文字が、セル I6 から始まってセル BL6 まで続きます。\nすべてのプロジェクトのタイムライン グラフは、条件付き書式を使用して、入力された開始日と終了日に基づいて自動生成されます。\nセル I7 から始まる列 I 以降の列のセルの内容を変更しないでください。","タスク","担当者","進捗状況","開始","終了",null,"日数",{"$f":"LEFT(TEXT(I5,\"ddd\"),1)","v":"S"},{"$f":"LEFT(TEXT(J5,\"ddd\"),1)","v":"M"},"T","W","T","F","S","S","M","T","W","T","F","S","S","M","T","W","T","F","S","S","M","T","W","T","F","S","S","M","T","W","T","F","S","S",{"$f":"LEFT(TEXT(AS5,\"ddd\"),1)","v":"M"},"T","W","T","F","S","S","M","T","W","T","F","S","S","M","T","W","T","F","S"]
["この行は削除しないでください。この行は、プロジェクトのスケジュール内にある現在の日付を強調表示するために使用されている数式を保持するために非表示になっています。 ",{"$nulls":6},{"$f":"IF(OR(ISBLANK(タスク_開始),ISBLANK(タスク_終了)),\"\",タスク_終了-タスク_開始+1)","v":""}]
["セル B8 には、フェーズ 1 のサンプルのタイトルが含まれます。\nセル B8 に新しいタイトルを入力します。\nプロジェクトに該当する場合は、セル C8 にフェーズを割り当てる名前を入力します。\nプロジェクトに該当する場合は、セル D8 にフェーズ全体の進捗状況を入力します。\nプロジェクトに該当する場合は、フェーズ全体の開始日と終了日をセル E8 と F8 に入力します。\nガント チャートは自動的に適切な日付を入力し、入力した進捗状況に応じて網かけを設定します。\nフェーズを削除してタスクからのみ作業をするには、この行を削除するだけです。","フェーズ 1 タイトル",{"$nulls":5},{"$f":"IF(OR(ISBLANK(タスク_開始),ISBLANK(タスク_終了)),\"\",タスク_終了-タスク_開始+1)","v":""}]
["セル B9 には、サンプル タスク \"タスク 1\" が含まれます。\nセル B9 に、新しいタスク名を入力します。\nセル C9 にタスクを割り当てるユーザーを入力します。\nセル D9 のタスクの進捗状況を入力します。進行状況バーは、セル内に表示され、セルの数に従って網かけを適用します。たとえば、50% の進捗状況はセルの半分に網かけを設定します。\nセル E9 にタスクの開始日を入力します。\nセル F9 にタスクの終了日を入力します。\n入力した日付の網かけのステータス バーは、セル I9 から始まる BL9 までのブロックに表示されます。 ","タスク 1","名前",{"v":0.5,"d":"50%"},{"$f":"プロジェクト_開始","v":"2019-05-30"},{"$f":"E9+3","v":"2019-06-02"},null,4]
["行 10 から 13 は、行 9 のパターンを繰り返します。\nこのワークシート内のすべてのタスク行に対し、セル A9 の手順を繰り返します。サンプル データはすべて上書きします。\n別のフェーズのサンプルは、セル A14 から始まります。\nセル A10 から A13 までにタスクの入力を続けるか、セル A14 に移動して詳細を確認します。","タスク 2",null,{"v":0.6,"d":"60%"},{"$f":"F9","v":"2019-06-02"},{"$f":"E10+2","v":"2019-06-04"},null,3]
[null,"タスク 3",null,{"v":0.5,"d":"50%"},{"$f":"F10","v":"2019-06-04"},{"$f":"E11+4","v":"2019-06-08"},null,5]
[null,"タスク 4",null,{"v":0.25,"d":"25%"},{"$f":"F11","v":"2019-06-08"},{"$f":"E12+5","v":"2019-06-13"},null,6]
[null,"タスク 5",null,null,{"$f":"E10+1","v":"2019-06-03"},{"$f":"E13+2","v":"2019-06-05"},null,3]
["右のセルには、フェーズ 2 のサンプルのタイトルが含まれます。\nB 列に、いつでも新しいフェーズを作成できます。このプロジェクトのスケジュールには、フェーズは不要です。フェーズを削除するには、行を削除するだけです。\nこの行に新しいフェーズ ブロックを作成するには、右のセルに新しいタイトルを入力します。\n上記のフェーズにタスクの追加を続けるには、この行の 1 つ上に新しい行を入力し、セル A9 の説明のようにタスク データを入力します。\nセル A8 の説明に基づいて右側のセルのフェーズの詳細情報を更新します。\n詳細については、A 列のセルを下に移動します。\nこのワークシートに新しい行を追加していない場合は、セル B20 と B26 に 2 つの追加のサンプル フェーズ ブロックが作成され表示されます。それ以外の場合、A 列のセルを移動して追加のブロックを探します。\n必要に応じて、セル A8 と A9 の手順を繰り返します。","フェーズ 2 タイトル",{"$nulls":5},""]
[null,"タスク 1",null,{"v":0.5,"d":"50%"},{"$f":"E13+1","v":"2019-06-04"},{"$f":"E15+4","v":"2019-06-08"},null,5]
[null,"タスク 2",null,{"v":0.5,"d":"50%"},{"$f":"E15+2","v":"2019-06-06"},{"$f":"E16+5","v":"2019-06-11"},null,6]
[null,"タスク 3",null,null,{"$f":"F16","v":"2019-06-11"},{"$f":"E17+3","v":"2019-06-14"},null,4]
[null,"タスク 4",null,null,{"$f":"E17","v":"2019-06-11"},{"$f":"E18+2","v":"2019-06-13"},null,3]
[null,"タスク 5",null,null,{"$f":"E18","v":"2019-06-11"},{"$f":"E19+3","v":"2019-06-14"},null,4]
["サンプル フェーズ タイトル ブロック","フェーズ 3 タイトル",{"$nulls":5},""]
[null,"タスク 1",null,null,{"$f":"E9+15","v":"2019-06-14"},{"$f":"E21+5","v":"2019-06-19"},null,6]
[null,"タスク 2",null,null,{"$f":"F21+1","v":"2019-06-20"},{"$f":"E22+4","v":"2019-06-24"},null,5]
[null,"タスク 3",null,null,{"$f":"E22+5","v":"2019-06-25"},{"$f":"E23+5","v":"2019-06-30"},null,6]
[null,"タスク 4",null,null,{"$f":"F23+1","v":"2019-07-01"},{"$f":"E24+4","v":"2019-07-05"},null,5]
[null,"タスク 5",null,null,{"$f":"E23","v":"2019-06-25"},{"$f":"E25+4","v":"2019-06-29"},null,5]
["サンプル フェーズ タイトル ブロック","フェーズ 4 タイトル",{"$nulls":5},""]
[null,"タスク 1",null,null,"日付","日付",null,{"$error":"#VALUE!"}]
[null,"タスク 2",null,null,"日付","日付",null,{"$error":"#VALUE!"}]
[null,"タスク 3",null,null,"日付","日付",null,{"$error":"#VALUE!"}]
[null,"タスク 4",null,null,"日付","日付",null,{"$error":"#VALUE!"}]
[null,"タスク 5",null,null,"日付","日付",null,{"$error":"#VALUE!"}]
["これは空の行です",{"$nulls":6},""]
["この行は、プロジェクトのスケジュールの終了を表します。この行には何も入力しないでください。\nこの行の上に新しい行を挿入して、プロジェクトのスケジュールの作成を続けます。","この行の上に新しい行を挿入する",{"$nulls":5},""]

{"sheet":"詳細情報","index":1,"n_rows":16,"n_cols":1,"rows_kept":16}
[]
["シンプル ガント チャート (Vertex42.com)"]
["https://www.vertex42.com/ExcelTemplates/simple-gantt-chart.html"]
["このテンプレートについて"]
["このテンプレートを使用すると、プロジェクトの視覚化と管理に役立つガント チャートを簡単な方法で作成できます。タスクと開始日、終了日を入力するだけです。数式の入力は必要はありません。ガント チャートのバーは、タスクの期間を表し、条件付き書式を使用して表示されます。新しいタスクを挿入するには、新しい行を挿入します。"]
["スクリーン リーダーのガイド"]
["このブックには 2 つのワークシートがあります。\n\nプロジェクトのスケジュール\n詳細情報\n\n各ワークシートの説明は、各ワークシートの A 列のセル A1 から始まります。非表示のテキストで書き込まれます。各手順では、その行に含まれる情報について説明しています。明示的な指示がない限り、後続の各手順はセル A2、セル A3 といった順に格納されています。たとえば、説明テキストに、次の手順について \"セル A6 に続く\" と記載されている場合があります。\n\nこの非表示のテキストは印刷されません。\n\nワークシートからこれらの説明を削除する場合は、A 列を削除するだけです。"]
["その他のヘルプ"]
["以下のリンクから Vertex42.com にアクセスし、このテンプレートの使用方法を詳しく学びます。たとえば、日数と稼働日の計算、タスクの依存関係を作成する、バーの色の変更、週表示を簡単に変更するためのスクロール バーを追加する方法、グラフに表示される日付範囲の拡大方法など。"]
["シンプル ガント チャートの使用方法"]
["その他のプロジェクト管理テンプレート"]
["Vertex42.com にアクセスして、さまざまな種類のプロジェクト スケジュール、ガント チャート、タスク リストなどのその他のプロジェクト管理テンプレートをダウンロードしてください。"]
["プロジェクト管理テンプレート"]
["Vertex42 について"]
["Vertex42.com では、企業、家庭、教育用に 300 を超える本格的なデザインのスプレッドシート テンプレートを提供しています。この大部分は無料でダウンロードすることができます。Vertex42.com のコレクションには、各種のカレンダー、プランナー、スケジュールに加えて、予算作成、債務削減、ローン返済用の個人の財務に関するスプレッドシートも含まれています。"]
["企業向けには、請求書、タイム シート、在庫管理、財務諸表、プロジェクト計画策定テンプレートがあります。学生と教師向けには、授業計画表、成績表、出席簿などのリソースがあります。献立表、チェックリスト、運動記録を使用して家族の生活を整理しましょう。各テンプレートは、数千のユーザーからのフィードバックを基に時間をかけて十分に研究、調整、改良されたものです。"]